Cogmind - Beta 9.3 @@@ ROGUE MODE // 2019.12.23 @ 17:33:59 // Halloween2019/Abominations Player: Demise Result: Destroyed by Minor Abomination with Particle Cannon Performance ------------- Evolutions (0) 0 Regions Visited (1) 200 Robots Destroyed (10) 50 Value Destroyed (111) 111 Prototype IDs (2) 40 Alien Tech Used (0) 0 Bonus (0) 0 TOTAL SCORE: 401 Bonus ------- None Cogmind --------- Core Integrity 0/250 Matter 300/300 Energy 249/250 System Corruption 0% Temperature Cool (18) Movement Rolling (100) Location -10/Materials Parts ------- > --- POWER (1) -------- Ion Engine > --- PROPULSION (2) --- Compact Wheel > --- UTILITY (2) ------ Seismic Analyzer > --- WEAPON (2) ------- (None) > --- INVENTORY (4) ---- Small Storage Unit Small Matter Pod (50) Peak State ------------ > --- POWER ------------ Ion Engine > --- PROPULSION ------- Wheel Compact Wheel > --- UTILITY ---------- Improved Terrain Scanner Seismic Analyzer > --- WEAPON ----------- Assault Rifle Light Assault Rifle > --- INVENTORY -------- (None) [Rating: 8] Favorites ----------- Power Ion Engine Engine Ion Engine Propulsion Compact Wheel Wheel Compact Wheel Utility Seismic Analyzer Device Improved Terrain Scanner Processor Seismic Analyzer Weapon Assault Rifle Ballistic Gun Assault Rifle Build | -11 -10 ------- Run | Scr Mat Slots Evolved . | . . Power . | . . Propulsion . | . . Utility . | . . Weapon . | . . Parts Attached 8 | 8 . Power 1 | 1 . Engine 1 | 1 . Core . | . . Reactor . | . . Propulsion 2 | 2 . Treads . | . . Leg . | . . Wheel 2 | 2 . Hover . | . . Flight . | . . Utility 3 | 3 . Device 1 | 1 . Storage . | . . Processor 2 | 2 . Hackware . | . . Protection . | . . Artifact . | . . Weapon 2 | 2 . Energy Gun . | . . Energy Cannon . | . . Ballistic Gun 2 | 2 . Ballistic Cannon . | . . Launcher . | . . Special Weapon . | . . Impact Weapon . | . . Slashing Weapon . | . . Piercing Weapon . | . . Special Melee Weapon . | . . Unidentified Prototypes . | . . Parts Lost 4 | . 4 Power . | . . Propulsion 1 | . 1 Utility 1 | . 1 Weapon 2 | . 2 Highest Loss Streak 2 | . 2 Average Slot Usage (%) 84 | . 84 Engine 14 | . 14 Wheel 22 | . 22 Device 8 | . 8 Processor 14 | . 14 Ballistic Gun 24 | . 24 Naked Turns . | . . Heaviest Build 9 | 9 9 Greatest Support 26 | 26 26 Greatest Overweight (x) . | . . Average Overweight (x) . | . . Largest Inventory Capacity 4 | 4 4 Average Capacity 4 | 4 4 Most Carried 2 | 2 2 Average Carried 1 | . 2 Final Capacity 4 | 4 4 Final Carried 2 | 2 2 Class Distribution -------------------- 100% | Mutant Dominant Class ---------------- Mutant | -10/Materials Resources | -11 -10 ----------- Run | Scr Mat Matter Collected 451 | 387 64 Remotely . | . . Salvage Created 277 | 204 73 Parts 26 | 20 6 Haulers Intercepted . | . . Recyclers Shooed 1 | 1 . Parts Field Recycled . | . . Retrieved Matter . | . . Parts Self-Destructed . | . . Prevented . | . . Kills | -11 -10 ------- Run | Scr Mat Combat Hostiles Destroyed 2 | . 2 Guns 2 | . 2 Classes Destroyed 4 | 3 1 Worker 2 | 2 . Tunneler 5 | 5 . Recycler 1 | 1 . Grunt 2 | . 2 Best Kill Streak 4 | 4 2 Combat Bots Only 2 | . 2 Max Kills in Single Turn 1 | 1 1 Gunslinging . | . . Exploded . | . . Melee . | . . Uniques/NPCs Destroyed . | . . Combat | -11 -10 -------- Run | Scr Mat Damage Taken 636 | . 636 Core 270 | . 270 Absorbed by Shields . | . . Core Remaining (%) 100 | 100 . Volleys Fired 35 | 15 20 Largest 2 | 2 2 Hottest 40 | 40 40 Shots Fired 70 | 30 40 Gun 70 | 30 40 Cannon . | . . Launcher . | . . Special . | . . Kinetic 70 | 30 40 Thermal . | . . Explosive . | . . Electromagnetic . | . . Robot Hit Streak 13 | 10 13 Robot Miss Streak 3 | 3 3 Penetration Max . | . . Secondary Targets . | . . Shots Hit Robots 47 | 18 29 Core Hits 19 | 11 8 Critical Hits . | . . Critical Kills . | . . Critical Parts Destroyed . | . . Melee Attacks . | . . Impact . | . . Slashing . | . . Piercing . | . . Sneak Attacks . | . . Combat Hostiles . | . . Follow-up Attacks . | . . Damage Inflicted 539 | 213 326 Guns 530 | 213 317 Cannons . | . . Explosions . | . . Melee . | . . Ramming 9 | . 9 Kinetic 530 | 213 317 Thermal . | . . Explosive . | . . Electromagnetic . | . . Impact . | . . Slashing . | . . Piercing . | . . Highest Corruption . | . . Average Corruption . | . . Corruption Purged . | . . Overload Shots . | . . Overflow Damage . | . . Projectiles . | . . Explosions . | . . Melee . | . . Knockbacks . | . . Impact . | . . Kinetic . | . . Secondary . | . . Self-Inflicted Damage 4 | . 4 Shots . | . . Rammed 1 | . 1 Targets Rammed 1 | . 1 Kicked . | . . Crushed . | . . Highest Temperature 24 | . 24 Average Temperature 10 | . 10 Received Heat Transfer 231 | . 231 Siege Activations . | . . Robots Corrupted . | . . Combat Hostiles . | . . Parts Fried . | . . Impact Corruptions . | . . Robots Melted . | . . Combat Hostiles . | . . Parts Melted . | . . Heat Transferred . | . . Parts Sabotaged . | . . Parts Stolen . | . . Parts Stripped . | . . Power Chain Reactions . | . . Missiles Intercepted . | . . Alert | -11 -10 ------- Run | Scr Mat Peak Influence 98 | 40 98 Average Influence 41 | 21 57 Maximum Alert Level . | . . Low Security (%) 100 | 100 100 Level 1 . | . . Level 2 . | . . Level 3 . | . . Level 4 . | . . Level 5 . | . . High Security . | . . Max Security . | . . Squads Dispatched 2 | . 2 Investigation 1 | . 1 Extermination . | . . Reinforcement 1 | . 1 Assault . | . . Garrison . | . . Intercept . | . . Construction Impeded . | . . Haulers Reinforced . | . . Stealth | -11 -10 --------- Run | Scr Mat Distress Signals 1 | . 1 Communications Jammed . | . . Distress Signals . | . . Times Spotted 8 | . 8 Peak Tracking Total 6 | . 6 Tactical Retreats 2 | . 2 Traps | -11 -10 ------- Run | Scr Mat Traps Triggered . | . . Indirectly . | . . Trap Hack Attempts . | . . Triggered . | . . Disarmed . | . . Reprogrammed . | . . Reused . | . . Traps Extracted . | . . Installed . | . . Triggered . | . . Machines | -11 -10 ---------- Run | Scr Mat Machines Disabled . | . . Max in Single Turn . | . . Machines Sabotaged . | . . Garrisons Compromised . | . . Overloaded Fab Kills . | . . Fab Network Shutdowns . | . . Hacking | -11 -10 --------- Run | Scr Mat Machines Accessed 2 | . 2 Terminals 2 | . 2 Fabricators . | . . Repair Stations . | . . Recycling Units . | . . Scanalyzers . | . . Garrison Access . | . . Total Hacks 8 | . 8 Successful 6 | . 6 Failed 2 | . 2 Catastrophic . | . . Database Lockouts . | . . Manual 3 | . 3 Terminals 8 | . 8 Fabricators . | . . Repair Stations . | . . Recycling Units . | . . Scanalyzers . | . . Garrison Access . | . . Terminal Hacks 4 | . 4 Prototype ID Bank 1 | . 1 Branch Access Points 1 | . 1 Registered Components 1 | . 1 Registered Prototypes 1 | . 1 Fabricator Hacks . | . . Repair Station Hacks . | . . Recycling Unit Hacks . | . . Scanalyzer . | . . Garrison Access Hacks . | . . Unauthorized Hacks 4 | . 4 Terminals 2 | . 2 Botnet 2 | . 2 Fabricators . | . . Repair Stations . | . . Recycling Units . | . . Scanalyzers . | . . Garrison Access . | . . Data Cores Recovered . | . . Used . | . . Hacking Detections 1 | . 1 Full Trace Events . | . . Feedback Events . | . . Feedback Blocked . | . . Robot Schematics Acquired . | . . Robots Built . | . . Matter . | . . Time . | . . Total Robot Build Rating . | . . Part Schematics Acquired . | . . Parts Built . | . . Matter . | . . Time . | . . Total Part Build Rating . | . . Parts Repaired . | . . Time . | . . Parts Recycled . | . . Recycled Matter . | . . Retrieved Matter . | . . Retrieved Components . | . . Parts Scanalyzed . | . . Part Schematics Acquired . | . . Parts Damaged . | . . Bothacking | -11 -10 ------------ Run | Scr Mat Used RIF Installer . | . . Robots Hacked . | . . Non-combat . | . . Combat . | . . Robot Hacks Applied . | . . Relay Couplers Released . | . . Robots Rewired . | . . Allies Hacked . | . . Hacks Repelled . | . . Allies | -11 -10 -------- Run | Scr Mat Total Allies . | . . Largest Group . | . . Highest-Rated Group . | . . Highest-Rated Ally . | . . Total Orders . | . . Ally Attacks . | . . Total Damage . | . . Kills . | . . Allies Corrupted . | . . Allies Melted . | . . Intel | -11 -10 ------- Run | Scr Mat Robot Analysis Total . | . . Derelict Logs Recovered . | . . Drone Launches . | . . Drone Recoveries . | . . Exploration | -11 -10 ------------- Run | Scr Mat Turns Passed 303 | 135 168 Spaces Moved 176 | 76 100 Core 2 | 2 . Treads . | . . Legs . | . . Wheels 174 | 74 100 Hover . | . . Flight . | . . Fastest Speed 50 | 50 90 Average Speed 90 | 88 92 Slowest Speed 100 | 90 100 Overloaded Moves . | . . Propulsion Burnouts . | . . Robots Hopped . | . . Cave-ins Triggered . | . . Exploration Rate (%) 10 | 3 17 Regions Visited 1 Branch Regions . Pre-discovered Areas . | . . Known Exits Taken . | . . Unknown Exits Taken 1 | 1 . Scrap Searched . | . . Spaces Dug . | . . Terrain Destroyed . | . . Melee . | . . Projectile . | . . AOE . | . . Actions | -11 -10 --------- Run | Scr Mat Total 252 | 112 140 Wait 31 | 12 19 Move 175 | 75 100 Hop . | . . Pick Up 2 | 2 . Fast Attach 7 | 7 . Attach . | . . Detach . | . . Swap 1 | 1 . Drop . | . . Fire 35 | 15 20 Melee . | . . Ram 1 | . 1 Kick . | . . Crush . | . . Escape Stasis . | . . Rewire . | . . Trap . | . . Miscellaneous . | . . Route ------- -11/Scrapyard -10/Materials History --------- Turn | Location | Event 16 | -11/Scrapyard | Discovered new exit (range 15) 136 | -11/Scrapyard | Entered Materials 158 | -10/Materials | Identified exit to Mines 285 | -10/Materials | Core integrity fell below 50% 290 | -10/Materials | Core integrity fell below 20% 304 | -10/Materials | Destroyed by Minor Abomination with Particle Cannon Last Messages --------------- 00251_ Violent ripples tear at the fabric of space around U-05 Engineer. 00251_ U-05 Engineer destroyed. 00254_ Acquired 26 matter. 00269_ R-06 Scavenger forced to warp away. 00279_ Destroyed Particle Gun. 00281_ Minor Abomination spits out Wheel. 00281_ Minor Abomination feeds off Hungry Anomaly, taking Wheel, Particle Cannon. 00281_ Hungry Anomaly eats Wheel. 00282_ Hungry Anomaly eats Hcp. Battery. 00283_ Minor Abomination spits out Wheel. 00283_ Minor Abomination feeds off Hungry Anomaly, taking Wheel. 00283_ Hungry Anomaly eats Wheel. 00284_ Minor Abomination spits out Wheel. 00284_ Minor Abomination feeds off Hungry Anomaly, taking Wheel. 00284_ Hungry Anomaly eats Wheel. 00284_ Assault Rifle destroyed. 00287_ Acquired 30 matter. 00288_ Lgt. Assault Rifle destroyed. 00301_ Slammed into Warp Anomaly. 00303_ 5 Matter blinks away. Map ----- +----------------------------------------------------+ | ?????????????????????????????????????????????????? | | ?????????????????????????????????????????????????? | | ?????????????????????????????????????????????????? | | ?????????????????????????????????????????????????? | | ???????????????????????? ???????????????????????? | | ???????????????????????? ???????????????????????? | | ???????????????????????? ???????????????????????? | | ??????????????????????##+###?????????????????????? | | ?????????????????????? ?????????????????????? | | ?????????????????????? ???#??????????????????? | | ?????????????????????# ?? #??????????????????? | | ?????????????????????# ??? #??????????????????? | | ???????????#?????????# ?? #??????????????????? | | ?????????????????????# ? #??????????????????? | | ?????????????????????# #????? #???????????? | | ?????????????????????# ? % ???? ????????????? | | ?????????????????????# ? ???? ??????????????? | | ??????????????########+###+#####+#######?????????? | | ???????# / ?????????? | | ???????????? ?######## ?????????? | | ?????????? ???????#??# ?????????? | | ?????????????##????### A AA#########+???????????? | | ???????? ?????????##?# #??? ??????????????? | | ????????? ???#?#????## #??# ???? ? ????????? | | ??????????? ?########+## ###????"?????????????? | | ??? ??????????# T ##@ #?#? ""???? ?????????? | | ???????????"??# ##% #??? ? ????? ?????? | | ?????????????## ## ##?#? ????? ?????????? | | ????? #?? ??## ## #???#????#???????????? | | ??????????##?## ## ########### ?????????? | | ??????????????# """ |## ## "T" #??????????? | | ?????????"? ?# """ ## ## #???"??????? | | ?????????"" ?## """ ## ## != #??????????? | | ????????"????## ## ## ! ##??????? ?? | | ?????????? ?######+### # #? ????????? | | ??????????? ??#?### [%! # """"" #??? ??????? | | ???????? ?????##?# == + """"" #??????????? | | ??????? ?? ?#???## # """"" #"?????????? | | ???????????? ??#??# #### # #??"???????? | | ?????????"" ?????##+##### ###########??? ??????? | | ??????? ??? ???#?# # # #?????????????? | | ??????#?"?? ?###?# + + #?##??????????? | | ????????? ??????## # # "" #?#???????????? | | ??????????#??????# !!! # # Y" #??#?? ???????? | | ?????????????#???# !! #####? "" #?????????????? | | ??????????#??#???# !! ##??# #?????????????? | | ???????????#?#???########????#?######??#?????????? | | ??????????????#?????###????#??#??#????#??????????? | | ????????#????##????????#??????#??#?????#?????????? | | | +----------------------------------------------------+ Best States ------------- Heat Dissipation 25 Energy Generation 10 Energy Capacity 250 Matter Stores 300 Matter Capacity 300 Sight Range 16 Terrain Scan Range 16 Terrain Scan Density 60 Evasion (%) 44 Item Schematics ----------------- None Robot Schematics ------------------ None Fabricated ------------ Nothing Alien Tech Used ----------------- None Achievements -------------- None Challenges ------------ None Game ------ Seed SmallCompactScreen Manual? 0 Play Time 00:07:11 Cumulative 149.8 hours Start 2019.12.23 @ 17:29:20 End 2019.12.23 @ 17:33:59 Sessions 1 Manual Loads 0 Difficulty Rogue Special Mode Halloween2019/Abominations Game No. 199 Rogue 188 Adventurer 11 Explorer 0 Win Type - Total 0 Types 0/0/0/0/0/0/0 Lore% 47 Gallery% 59 Achievement% 42 Wizard Run 0 Options --------- ASCII 0 Keyboard 1 Movement Numpad Keybinds 0 Fullscreen 1 Font 12/Terminus Map View 83x54 Tactical HUD 1 Map Filters NONE Filters NONE Steam X RUN: 9854e622-973e-48b6-8b06-cc442b9cd07b